[Event "Marshall CC U2400 April 2024"]
[Site "New York"]
[Date "2024.04.20"]
[Round "2.1"]
[White "Panico, Nick"]
[Black "Jiang, Jason"]
[Result "1/2-1/2"]
[ECO "B52"]
[WhiteElo "1952"]
[BlackElo "2005"]
[Annotator "NA RC"]
[PlyCount "44"]
[EventDate "2024.04.20"]
[EventType "swiss"]
[EventCountry "USA"]
[SourceTitle "playchess.com"]
[Source "ChessBase"]
[SourceQuality "1"]
[TimeControl "5400+30"]

{[%evp 21,52,10,0,0,5,0,0,0,0,0,7,0,0,0,0,32767,32767,32767,32767,32767,32767,32767,32767,32767,32767,32767,32767,32767,0,0,0,0,0]} 1. e4 {[%emt 0:00:24]} c5 {[%emt 0:21:50]} 2. Nf3 {[%emt 0:00:36]} d6 {[%emt 0:00:06]} 3. Bb5+ {[%emt 0:01:29]} Bd7 {[%emt 0:00:11]} 4. Bxd7+ {[%emt 0:01:26]} Qxd7 {[%emt 0:00:09]} 5. c4 {[%emt 0:02:55]} Nf6 {[%emt 0:00:16]} 6. Nc3 {[%emt 0:01:47]} g6 {[%emt 0:00:12]} 7. d4 {[%emt 0:02:05]} cxd4 {[%emt 0:00:08]} 8. Nxd4 {[%emt 0:00:31]} Bg7 {[%emt 0:00:08]} 9. O-O {[%emt 0:01:13]} O-O {[%emt 0:00:17]} 10. f3 {[%emt 0:03:37]} Rc8 {[%emt 0:00:07]} 11. b3 {[%emt 0:01:37]} d5 {[%emt 0:00:07]} 12. exd5 {[%emt 0:09:44]} Nxd5 {[%emt 0:00:14]} 13. Nxd5 {[%emt 0:01:01]} e6 {[%emt 0:00:07]} 14. Bh6 {[%emt 0:05:38]} exd5 {[%emt 0:00:07]} 15. Bxg7 {[%emt 0:00:08]} Kxg7 {[%emt 0:00:07]} 16. Nb5 {[%emt 0:01:12]} dxc4 {[%emt 0:00:32]} 17. Nd6 {[%emt 0:00:35]} Rd8 {[%emt 0:00:28]} 18. Nxb7 {[%emt 0:00:34]} Qxd1 {[%emt 0:00:13]} 19. Raxd1 {[%emt 0:00:30]} Rxd1 {[%emt 0:00:30]} 20. Rxd1 {[%emt 0:00:00]} cxb3 {[%emt 0:00:35]} 21. axb3 {[%emt 0:00:00]} Nc6 {[%emt 0:00:59]} 22. Rd7 {[%emt 0:00:41]} Kf8 $146 {[%emt 0:02:30]} ({Predecessor:} 22... a5 23. Kf2 a4 24. bxa4 Rxa4 25. Rd2 Rd4 26. Rxd4 Nxd4 27. Nc5 h5 28. Ne4 Ne6 29. h4 Nd4 30. g4 hxg4 31. fxg4 f5 32. gxf5 Nxf5 33. h5 gxh5 34. Ng3 Nxg3 35. Kxg3 h4+ 36. Kxh4 {½-½ Zhao,J (2613)-Wei,Y (2718) CHN-ch Xinghua 2015 (9)}) 1/2-1/2

[Event "Marshall CC U2400 April 2024"]
[Site "New York"]
[Date "2024.04.20"]
[Round "2.2"]
[White "Berg, George"]
[Black "Hoffman, Luc"]
[Result "0-1"]
[ECO "B15"]
[WhiteElo "1832"]
[BlackElo "2006"]
[Annotator "TA"]
[PlyCount "114"]
[EventDate "2024.04.20"]
[EventType "swiss"]
[EventCountry "USA"]
[SourceTitle "playchess.com"]
[Source "ChessBase"]
[SourceQuality "1"]
[TimeControl "5400+30"]

{[%evp 9,114,41,48,31,25,26,34,21,24,-3,16,18,32,-6,0,0,0,-15,0,0,-10,0,0,0,7,0,14,11,16,0,0,-3,0,-6,0,0,17,0,0,0,0,0,0,0,0,0,0,0,0,0,0,0,0,0,0,0,0,0,0,-24,0,0,0,-34,-45,-50,-54,-75,0,0,0,0,0,0,0,0,0,0,0,0,0,0,196,0,582,0,0,0,0,0,303,281,275,85,93,36,283,0,0,0,0,0,0,0,0,-29980,-29976]} 1. e4 {[%emt 0:00:02]} c6 {[%emt 0:00:07]} 2. d4 {[%emt 0:00:05]} d5 {[%emt 0:00:06]} 3. Nd2 {[%emt 1:31:53]} dxe4 {[%emt 0:00:15]} 4. Nxe4 {[%emt 0:00:00]} g6 {[%emt 0:00:04]} 5. Bc4 {[%emt 0:00:00]} Bg7 {[%emt 0:01:18]} 6. Qf3 {[%emt 0:00:00]} Nf6 {[%emt 0:02:26]} 7. Ne2 {[%emt 0:00:00]} O-O {[%emt 0:01:28]} 8. Nxf6+ {[%emt 0:00:00] White is slightly better.} exf6 {[%emt 0:04:09]} 9. O-O {[%emt 0:00:00]} f5 {[%emt 0:02:09]} 10. c3 {[%emt 0:00:00]} Nd7 {[%emt 0:00:38]} 11. Bb3 {[%emt 0:00:00]} Re8 {[%emt 0:02:03]} 12. Be3 {[%emt 0:00:00]} Nf6 {[%emt 0:02:58]} 13. Rad1 {[%emt 0:00:00]} Qe7 {[%emt 0:03:12][%cal Og6g5]} 14. Rfe1 {[%emt 0:00:00]} Be6 {[%emt 0:01:54]} 15. Nf4 {[%emt 0:00:00]} Bxb3 {[%emt 0:01:20]} 16. axb3 {[%emt 0:00:00]} Rad8 {[%emt 0:03:25]} 17. h3 {[%emt 0:00:00]} Nd5 {[%emt 0:04:47]} 18. Nxd5 {[%emt 0:00:00]} cxd5 {[%emt 0:00:19]} 19. Bd2 {[%emt 0:00:00]} Qd7 {[%emt 0:00:11]} 20. Rxe8+ {[%emt 0:00:00]} Rxe8 {[%emt 0:00:19]} 21. Re1 {[%emt 0:00:00]} Re4 {[%emt 0:00:36]} 22. Rxe4 {[%emt 0:00:00]} dxe4 $11 {[%emt 0:00:38][%mdl 4096] Endgame. KQB-KQB} 23. Qf4 {[%emt 0:00:00]} h5 {[%emt 0:04:01]} 24. Qb8+ {[%emt 0:00:00]} Kh7 {[%emt 1:04:07]} 25. Qxa7 {[%emt 0:00:00]} Qb5 {[%emt 0:00:09] Inhibits Qb6.} 26. b4 {[%emt 0:00:00]} Qe2 {[%emt 0:01:13]} 27. Be3 {[%emt 0:00:00]} Qe1+ {[%emt 0:07:59]} 28. Kh2 {[%emt 0:00:00]} f4 {[%emt 0:01:25]} 29. Bxf4 {[%emt 0:00:00]} Qxf2 {[%emt 0:00:08]} 30. Bg3 {[%emt 0:00:00]} Qf6 {[%emt 0:04:03] And now ...h4 would win.} (30... Qxb2 31. Qc5 $17) 31. Qxb7 {[%emt 0:14:00]} h4 $36 {[%emt 0:00:09][%mdl 2048] Black has some pressure.} 32. Qxe4 {[%emt 0:00:00]} (32. Be5 $5 Qf5 $8 33. Kg1 $11) 32... hxg3+ {[%emt 0:00:17]} 33. Kxg3 {[%emt 0:00:00]} Bh6 {[%emt 0:00:50]} 34. Qf3 {[%emt 0:00:00]} Qg5+ {[%emt 0:02:20][%mdl 1024] Black has compensation.} (34... Qe6 {keeps more tension.} 35. b5 Kg7 36. Qd3 Qf6) 35. Kh2 {[%emt 0:00:00]} Kg7 {[%emt 0:00:20]} 36. g3 {[%emt 0:00:00]} Qd2+ {[%emt 0:00:51]} 37. Qg2 {[%emt 0:00:00] Black must now prevent Qxd2.} Qd3 {[%emt 0:01:01]} 38. h4 {[%emt 0:00:00]} Bd2 {[%emt 0:01:33] Black is more active.} (38... Bc1 $1 $17 39. Qf2 Qb1) 39. b5 $1 {[%emt 0:00:00] b6 would now be deadly.} f5 $1 {[%emt 0:02:58][%cal Of5f4]} 40. b6 {[%emt 0:00:00] Strongly threatening b7.} f4 {[%emt 0:00:06]} 41. b7 {[%emt 0:00:00]} fxg3+ {[%emt 0:01:53]} 42. Qxg3 {[%emt 0:00:00]} Qe2+ {[%emt 0:00:03]} 43. Kh3 {[%emt 0:00:00]} Qf1+ {[%emt 0:00:33]} 44. Qg2 $1 {[%emt 0:00:00]} Qf5+ {[%emt 0:01:39]} 45. Qg4 {[%emt 0:00:00]} Qb5 $2 {[%emt 0:02:03] [#]} (45... Qf1+ $11 46. Qg2 Qf5+ 47. Qg4 Qf1+ 48. Kg3 Qg1+ 49. Kf3 Qd1+ 50. Kg3 Qg1+ 51. Kf3 Qd1+ 52. Kg3 Qg1+) 46. Qe4 $2 {[%emt 0:05:24]} (46. Qf3 $1 $18) 46... Kh6 {[%emt 0:05:59][%mdl 8192]} (46... Qf1+ $11 47. Qg2 Qf5+ 48. Qg4 Qf1+ 49. Qg2) 47. b4 $2 {[%emt 0:03:17]} ({White has to play} 47. c4 $18 Qb3+ 48. Kg4) 47... Qf1+ {[%emt 0:01:37]} 48. Qg2 {[%emt 0:00:06]} (48. Kg4 $5 Qg1+ $8 49. Kh3 Qf1+ 50. Qg2 Qd3+ 51. Qg3 Qf1+ 52. Qg2 Qd3+ 53. Kg4 (53. Qg3 Qf1+ 54. Kh2 Bf4 $11) 53... Qf5+ (53... Bxc3 $2 {perishes.} 54. b8=Q $18) 54. Kg3 Be1+ (54... Bxc3 $2 55. b8=Q $18) 55. Kh2 Qf4+ (55... Bxh4 $2 56. b8=Q $18) 56. Kg1 Qe3+ (56... Bxh4 57. Qe2 $11) 57. Kh2 Qf4+ (57... Bxc3 $2 58. Qg5+ Qxg5 59. hxg5+ Kh5 60. b8=Q $18) 58. Kg1 Qe3+ (58... Bxh4 59. Qf1 $11) 59. Kh2 Qf4+ $11 (59... Bxc3 60. Qg5+ Qxg5 61. hxg5+ Kxg5 62. b8=Q Bd2 63. Qe5+ Kh6 64. b5)) 48... Qf5+ {[%emt 0:00:58]} 49. Qg4 {[%emt 0:00:06] Intending Qxf5 and mate.} (49. Kh2 $5 Bf4+ $8 (49... Bxc3 50. b8=Q Bxd4 51. Qd2+ Kh7 52. Qxd4 Qc2+ 53. Kg3 Qb3+ 54. Kf4 Qf7+ 55. Ke3) 50. Kg1 $11) 49... Qf8 {[%emt 0:01:14][%mdl 8192]} (49... Qf1+ $11 50. Qg2 Qd3+ 51. Qg3 Qf1+ 52. Qg2) 50. Kg2 $18 {[%emt 0:06:40] Qc8 is the strong threat.} Be3 {[%emt 0:08:44] [#]} 51. Qf3 {[%emt 0:01:43]} (51. Qe2 $1 $18 {[%cal Re2e3]} Bf4 52. Qe6) 51... Bf4 $16 {[%emt 0:00:11]} 52. b5 {[%emt 0:04:33]} ({White should play} 52. Kf2 $16) 52... Qd6 $2 {[%emt 0:02:27]} ({Better is} 52... Kg7 $1 $14) 53. Qc6 $2 {[%emt 0:00:29]} ({White should try} 53. Qe4 $18) 53... Qe7 $11 {[%emt 0:00:43]} 54. Qf3 {[%emt 0:02:05] Against Qe2+} Bb8 {[%emt 0:00:36]} 55. Kh3 {[%emt 0:00:48]} Qd6 {[%emt 0:00:41]} 56. Qe3+ {[%emt 0:00:48]} Kh7 {[%emt 0:00:05] The board is on fire.} 57. Qe5 {[%emt 0:00:18][%mdl 8192]} Qd7+ {[%emt 0:00:05] Weighted Error Value: White=0.46/Black=0.31.  Loses game:     	White=1     	Black=4      Missed win:     	White=4     	---        Mistake:       	White=1     	Black=1      Inaccurate:     	White=3     	---        OK:         	White=10    	Black=21     Best:        	White=3     	Black=10     Strong:       	White=2     	Black=1} 0-1

[Event "Marshall CC U2400 April 2024"]
[Site "New York"]
[Date "2024.04.20"]
[Round "2.3"]
[White "Stancil, Kimani"]
[Black "Kozower, Ethan"]
[Result "1-0"]
[ECO "B45"]
[WhiteElo "1873"]
[BlackElo "1943"]
[Annotator "TA"]
[PlyCount "63"]
[EventDate "2024.04.20"]
[EventType "swiss"]
[EventCountry "USA"]
[SourceTitle "playchess.com"]
[Source "ChessBase"]
[SourceQuality "1"]
[TimeControl "5400+30"]

{[%evp 15,63,-72,-53,-68,-61,-156,-156,-222,-187,-210,-119,-128,-125,-152,-152,-162,-152,-188,-126,-147,-88,-172,-150,-151,-104,-264,-218,-217,-218,-262,-200,-214,-116,-129,-15,-20,89,77,78,81,206,200,209,0,218,188,370,408,373,374]} 1. e4 {[%emt 0:00:04]} c5 {[%emt 0:01:39]} 2. Nf3 {[%emt 0:00:08]} Nc6 {[%emt 0:00:21]} 3. d4 {[%emt 0:00:15]} cxd4 {[%emt 0:00:09]} 4. Nxd4 {[%emt 0:00:05]} Nf6 {[%emt 0:00:09]} 5. Nc3 {[%emt 0:06:16]} e6 {[%emt 0:00:02]} 6. Be3 {[%emt 0:20:20]} Bb4 {[%emt 0:00:03]} 7. f3 {[%emt 0:02:00]} d5 {[%emt 0:01:34]} 8. Nxc6 {[%emt 0:00:50]} bxc6 {[%emt 0:00:02]} 9. Bd2 {[%emt 0:03:51]} O-O {[%emt 0:08:57]} 10. h4 {[%emt 0:11:46]} (10. Bd3 $15) 10... Qc7 {[%emt 0:10:37]} 11. Rh3 {[%emt 0:05:18] Prevents Qg3+.} (11. Bd3 $17) 11... Rd8 {[%emt 0:24:15]} 12. Qe2 {[%emt 0:07:27]} d4 {[%emt 0:13:14]} (12... e5 $19 13. Rh1 Nh5) 13. Nd1 {[%emt 0:02:35]} a5 {[%emt 0:00:04]} 14. Bxb4 {[%emt 0:04:58]} axb4 {[%emt 0:00:04]} 15. Qd2 {[%emt 0:01:10]} Nh5 {[%emt 0:09:34]} 16. Nf2 {[%emt 0:03:15]} Nf4 {[%emt 0:02:46] Repels Nd3} (16... c5 $19 {White must now prevent ...c4.} 17. b3 h6) 17. Rh1 $17 {[%emt 0:00:24][%cal Oh4h5]} c5 {[%emt 0:05:12]} ({Better is} 17... b3 18. cxb3 Ba6) 18. g3 {[%emt 0:01:42]} (18. h5 $17 {might work better.}) 18... Nh5 $19 {[%emt 0:00:19]} 19. Qg5 {[%emt 0:00:45]} g6 {[%emt 0:00:40]} (19... Nxg3 $2 20. Rg1 $18) (19... Nf6 $142 $1 20. Bc4 h6) 20. Rg1 $2 {[%emt 0:08:13]} (20. g4 $17 f6 21. Qh6) 20... f6 {[%emt 0:04:50]} 21. Qh6 {[%emt 0:00:02]} Ba6 {[%emt 0:02:07] Wards off Bc4} (21... Nxg3 22. Bc4 $16) 22. Bh3 {[%emt 0:01:36]} Re8 {[%emt 0:01:06][%cal Oc5c4]} (22... Nxg3 23. h5 (23. Bxe6+ Kh8 $16) (23. f4 Nh5 $11) 23... Nxh5 24. Rxg6+ (24. Qxh5 Qf4 $11) (24. Bxe6+ Kh8 $15) 24... Kh8 25. Qxh5 $11) 23. Bg4 {[%emt 0:00:35]} Ng7 {[%emt 0:08:43]} (23... Nxg3 $19 {aiming for ...Ne2.} 24. h5 Ne2) 24. h5 $17 {[%emt 0:00:25]} Qf7 {[%emt 0:02:43]} (24... Nf5 25. Bxf5 (25. exf5 exf5+ 26. Kd1 fxg4 $17) 25... exf5 26. hxg6 $11) (24... gxh5 $1 $17 25. Bxh5 Rf8) 25. hxg6 $11 {[%emt 0:05:20]} hxg6 {[%emt 0:00:43]} (25... Qxg6 $11 {keeps the balance.} 26. Qxg6 hxg6) 26. Rh1 $16 {[%emt 0:03:17][%csl Gh1][%cal Rh6h8]} Kf8 {[%emt 0:00:01] [#]} 27. e5 $1 {[%emt 0:00:40]} f5 {[%emt 0:01:36] [#] Against Ne4} (27... Bb7 $16 {keeps fighting.}) 28. Qg5 $1 $18 {[%emt 0:00:06]} Kg8 {[%emt 0:01:08] Inhibits Rh8+.} ({Inferior is} 28... fxg4 29. Rh8+) 29. Qh6 $40 {[%emt 0:03:21][%csl Gh1][%cal Rh6h8][%mdl 128] White is up to no good.} Kf8 $1 {[%emt 0:00:09] [#]} 30. Nh3 $1 {[%emt 0:00:33] And now Ng5 would win.} fxg4 $2 {[%emt 0:01:46]} (30... Qc7 {was worth a try.} 31. Qh8+ Ke7 32. Qxg7+ Kd8 33. Qf6+ (33. Qxg6 Qxe5+ 34. Kf2 fxg4 $15) 33... Kc8) 31. Ng5 {[%emt 0:00:11]} Qg8 {[%emt 0:00:50]} 32. Qxg6 {[%emt 0:00:37] Weighted Error Value: White=0.34/Black=0.48.  Mistake:       	White=4     	Black=9      OK:         	White=4     	Black=5      Best:        	White=5     	Black=1      Strong:       	White=2     	Black=1} 1-0

[Event "Marshall CC U2400 April 2024"]
[Site "New York"]
[Date "2024.04.20"]
[Round "2.4"]
[White "Knowles, Chase"]
[Black "Zhou, Abigail"]
[Result "1/2-1/2"]
[ECO "A13"]
[WhiteElo "1978"]
[BlackElo "1702"]
[Annotator "TA"]
[PlyCount "130"]
[EventDate "2024.04.20"]
[EventType "swiss"]
[EventCountry "USA"]
[SourceTitle "playchess.com"]
[Source "ChessBase"]
[SourceQuality "1"]
[TimeControl "5400+30"]

{[%evp 11,130,0,0,11,15,4,16,14,55,-17,35,-3,-11,-10,60,62,85,69,92,37,39,18,18,0,0,0,0,0,0,0,116,132,135,138,133,133,173,91,96,82,87,89,170,69,70,-26,-32,-353,-353,-336,-350,-338,-341,-321,-189,-172,-177,-177,-179,-175,-111,-114,-22,-32,0,-8,0,-27,-29,-30,-4,0,0,-62,-60,-114,-80,-80,-22,-29,-14,-15,0,0,0,0,0,0,0,0,0,0,0,0,0,0,0,0,0,0,0,0,0,0,8,8,8,0,8,-8,-8,-8,-8,-8,0,-14,0,-22,0,-20,0]} 1. Nf3 {[%emt 0:04:44]} d5 {[%emt 0:00:07]} 2. c4 {[%emt 0:00:07]} e6 {[%emt 0:00:09]} 3. e3 {[%emt 0:00:13]} Nf6 {[%emt 0:00:31]} 4. Nc3 {[%emt 0:01:28]} Be7 {[%emt 0:00:41]} 5. b3 {[%emt 0:00:11]} O-O {[%emt 0:00:41]} 6. Bb2 {[%emt 0:00:10]} b6 {[%emt 0:00:59]} 7. cxd5 {[%emt 0:02:10]} exd5 {[%emt 1:30:52]} 8. Rc1 {[%emt 0:00:15]} c5 {[%emt 0:01:24]} 9. d4 {[%emt 0:00:18]} Be6 {[%emt 0:00:54]} 10. Ng5 {[%emt 1:25:54]} ({White should play} 10. Bd3 $14) 10... Bf5 {[%emt 0:00:51]} (10... Bg4 $11 11. Be2 cxd4 12. Qxd4 Nc6) 11. Bd3 {[%emt 0:02:17]} Bxd3 {[%emt 0:01:22]} 12. Qxd3 {[%emt 0:00:05]} h6 {[%emt 0:00:24]} (12... cxd4 $11 13. exd4 Nc6) 13. Nf3 $14 {[%emt 0:01:04]} Re8 {[%emt 0:03:08]} 14. O-O {[%emt 0:00:37]} Nbd7 {[%emt 0:00:53]} 15. Ne5 {[%emt 0:01:20]} (15. Rfd1 $16) 15... Bd6 {[%emt 0:03:43]} 16. f4 {[%emt 0:06:24]} Rc8 {[%emt 0:01:24]} 17. Rf3 {[%emt 1:15:23]} Nf8 {[%emt 0:02:58]} 18. Rd1 {[%emt 0:11:46]} cxd4 {[%emt 0:01:30]} 19. Qxd4 {[%emt 0:03:11]} Ne6 {[%emt 0:00:45]} 20. Qd3 {[%emt 0:01:42][%cal Oe5f7]} Nc7 {[%emt 0:03:34]} (20... Bc5 $11 {remains equal.}) 21. Nc6 $16 {[%emt 0:06:47][%csl LRa7,LRd8] White is much more active.} Qd7 {[%emt 0:00:16]} 22. Nxa7 {[%emt 0:00:15]} Ra8 {[%emt 0:02:36]} 23. Nab5 {[%emt 0:00:10]} Bc5 {[%emt 0:02:28]} 24. a4 {[%emt 0:06:58]} ({Better is} 24. Nxc7 $18 Qxc7 25. Nb5 (25. Nxd5 $2 Nxd5 26. Bd4 Bxd4 $19)) 24... Na6 {[%emt 0:03:38]} 25. Na2 {[%emt 0:05:35] Bxf6 would now be deadly.} Ng4 {[%emt 0:02:20][%cal Re8e3]} 26. Nd4 {[%emt 0:01:52]} (26. Qxd5 $2 Bxe3+ 27. Kh1 (27. Rxe3 $2 Qxd5 28. Rxd5 Rxe3 $19) 27... Nf2+ 28. Rxf2 Qxd5 29. Rxd5 Bxf2 $19) 26... Qe7 {[%emt 0:03:33]} (26... Nf6 $16) 27. Nf5 {[%emt 0:04:30]} (27. b4 $18 Qh4 28. h3 (28. bxc5 $2 Qxh2+ 29. Kf1 Nxc5 $19) 28... Rxe3 (28... Nxb4 29. Nxb4 Rxe3 30. Qf1 $18) 29. Qf1 Nxb4 30. Nxb4 (30. hxg4 Rxf3 31. gxf3 Nxa2 $17) 30... Bxb4 31. Nf5 (31. hxg4 Rxf3 32. Nxf3 Qxg4 $16)) 27... Qe4 $14 {[%emt 0:01:40][%cal Rg4e3]} 28. Rg3 {[%emt 0:19:15]} (28. Bxg7 $2 Nxe3 29. Nxe3 Bxe3+ (29... Kxg7 30. Qc3+ f6 31. Rg3+ Kf7 32. Rd3 $11) 30. Qxe3 Qxe3+ 31. Rxe3 Rxe3 $19) (28. Qxd5 $2 Rad8 29. Qxd8 Rxd8 (29... Nxe3 30. Qxe8+ Qxe8 31. Nxe3 $14) 30. Rxd8+ Kh7 $19) (28. Bd4 $14 g6 29. Ng3 Qxd3 30. Rxd3) 28... Nxe3 $40 {[%emt 0:04:47][%mdl 128] Black is up to no good.} 29. Rxg7+ $2 {[%emt 0:05:22][%mdl 8192]} (29. Nxe3 $15 Bxe3+ 30. Kf1 (30. Kh1 $2 d4 $19)) 29... Kf8 $19 {[%emt 0:00:30]} 30. Nxe3 {[%emt 0:02:58]} Bxe3+ {[%emt 0:00:39]} 31. Kh1 {[%emt 0:00:08] [#] Strongly threatening Qxe4.} Qxd3 {[%emt 0:00:25]} 32. Rxd3 {[%emt 0:00:09] [#]} Bd4 $1 {[%emt 0:01:04][%mdl 512]} 33. Bxd4 {[%emt 0:01:43]} Re1+ {[%emt 0:00:07]} 34. Bg1 {[%emt 0:00:03]} Kxg7 {[%emt 0:00:09]} 35. h3 {[%emt 0:00:16][%cal Oa2c3]} Rd8 {[%emt 0:00:41]} ({Black should try} 35... Nc5 $19 36. Rxd5 Nxb3) 36. Kh2 {[%emt 0:00:04]} Rd6 {[%emt 0:00:32]} (36... Nc5 $17 37. Rg3+ Kh7) 37. Nc3 $11 {[%emt 0:00:27][%cal Oc3b5]} Nc7 {[%emt 0:00:39]} 38. b4 {[%emt 0:01:05]} f6 {[%emt 0:03:27]} 39. a5 {[%emt 0:00:46]} bxa5 {[%emt 0:00:14]} 40. bxa5 {[%emt 0:00:07]} Ra1 {[%emt 0:00:11]} 41. Bb6 {[%emt 0:00:20]} Rd7 {[%emt 0:00:26][%cal Od5d4]} 42. g4 {[%emt 0:04:35]} (42. Ne4 $11 Nb5 43. Nc5) 42... Kf7 {[%emt 0:01:37]} 43. Bxc7 {[%emt 0:04:36]} (43. Ne4 $15) 43... Rxc7 $17 {[%emt 0:00:07]} 44. Nxd5 $15 {[%emt 0:01:05][%mdl 4096] Endgame. KRR-KRN} Rc2+ {[%emt 0:00:16]} (44... Rd7 $17 {Threatens to win with ...Ra2+.} 45. Nb4 Rxd3 46. Nxd3 Ra2+ (46... Rxa5 47. Nf2 $17) 47. Kg1 h5 (47... Rxa5 48. Kg2 $17) 48. gxh5 Ra3 (48... Rxa5 49. Kg2 $17)) 45. Kg3 $11 {[%emt 0:00:06]} Rxa5 {[%emt 0:00:10]} 46. f5 {[%emt 0:00:31] The position is equal.} Ra7 {[%emt 0:01:14]} 47. Nf4 {[%emt 0:00:17]} Rc6 {[%emt 0:00:48]} 48. Kh4 {[%emt 0:01:01]} Kg7 {[%emt 0:00:30]} 49. Ne6+ {[%emt 0:00:17]} Kh7 {[%emt 0:00:35]} 50. Rd8 {[%emt 0:01:24]} Rf7 {[%emt 0:01:47]} 51. Kh5 {[%emt 0:00:25]} Rc3 {[%emt 0:00:42]} 52. h4 {[%emt 0:00:06]} Rh3 {[%emt 0:51:54]} 53. Nf4 {[%emt 0:00:26]} Rh1 {[%emt 0:00:36]} 54. Ng6 {[%emt 0:00:06]} Rh2 {[%emt 0:00:23]} 55. Rh8+ {[%emt 0:00:29]} Kg7 {[%emt 0:00:09]} 56. Rxh6 {[%emt 0:00:05]} Rf2 {[%emt 0:00:52]} 57. Rh8 {[%emt 0:00:18]} Rf1 {[%emt 0:00:33]} 58. Ra8 {[%emt 0:03:16]} Rf2 {[%emt 0:00:15]} 59. Ra5 {[%emt 0:00:52]} Rf1 {[%emt 0:00:22]} 60. g5 {[%emt 0:01:13]} fxg5 {[%emt 0:00:12]} 61. Kxg5 {[%emt 0:00:09]} Rg1+ {[%emt 0:00:15]} 62. Kh5 {[%emt 0:00:11]} Rf1 {[%emt 0:00:07]} 63. Kg4 {[%emt 0:00:50]} Rg1+ {[%emt 0:00:10][%mdl 1024] Black has compensation.} 64. Kh3 {[%emt 0:00:35]} Rf1 {[%emt 0:00:10]} 65. Kg4 {[%emt 0:00:44]} Rg1+ {[%emt 0:00:09] And White is the lucky defender.   Weighted Error Value: White=0.21 (precise) /Black=0.21 (precise) .  Loses game:     	White=1     	---        Mistake:       	White=7     	Black=8      Inaccurate:     	White=2     	Black=4      OK:         	White=17    	Black=15     Best:        	White=9     	Black=1} 1/2-1/2